Cogmind - Beta 10.2 @@@ ROGUE MODE // 2020.11.07 @ 20:31:27 Player: zimbolt Result: Destroyed by G-34 Mercenary with Small Laser Performance ------------- Evolutions (0) 0 Regions Visited (1) 200 Robots Destroyed (5) 25 Value Destroyed (109) 109 Prototype IDs (0) 0 Alien Tech Used (0) 0 Bonus (0) 0 TOTAL SCORE: 334 Bonus ------- None Cogmind --------- Core Integrity 0/250 Matter 248/300 Energy 100/100 System Corruption 0% Temperature Cool (6) Movement Rolling (80) Location -10/Materials Parts ------- > --- POWER (1) -------- (None) > --- PROPULSION (2) --- Wheel Wheel > --- UTILITY (2) ------ (None) > --- WEAPON (2) ------- Assault Rifle > --- INVENTORY (4) ---- (None) Peak State ------------ > --- POWER ------------ Light Ion Engine > --- PROPULSION ------- Aluminum Leg Aluminum Leg > --- UTILITY ---------- (None) > --- WEAPON ----------- Light Assault Rifle Light Assault Rifle > --- INVENTORY -------- Wheel Wheel [Rating: 5] Favorites ----------- Power Light Ion Engine Engine Light Ion Engine Propulsion Aluminum Leg Leg Aluminum Leg Wheel Wheel Utility None Weapon Light Assault Rifle Energy Gun Small Laser Ballistic Gun Light Assault Rifle Build | -11 -10 ------- Run | Scr Mat Slots Evolved . | . . Power . | . . Propulsion . | . . Utility . | . . Weapon . | . . Parts Attached 10 | 6 4 Power 2 | 2 . Engine 2 | 2 . Core . | . . Reactor . | . . Propulsion 4 | 2 2 Treads . | . . Leg 2 | 2 . Wheel 2 | . 2 Hover . | . . Flight . | . . Utility . | . . Device . | . . Storage . | . . Processor . | . . Hackware . | . . Protection . | . . Artifact . | . . Weapon 4 | 2 2 Energy Gun 1 | . 1 Energy Cannon . | . . Ballistic Gun 3 | 2 1 Ballistic Cannon . | . . Launcher . | . . Special Weapon . | . . Impact Weapon . | . . Slashing Weapon . | . . Piercing Weapon . | . . Special Melee Weapon . | . . Unidentified Prototypes . | . . Parts Lost 6 | . 6 Power 1 | . 1 Propulsion 2 | . 2 Utility . | . . Weapon 3 | . 3 Highest Loss Streak 4 | . 4 Average Slot Usage (%) 42 | . 42 Engine 2 | . 2 Leg 15 | . 15 Wheel 7 | . 7 Energy Gun 1 | . 1 Ballistic Gun 15 | . 15 Naked Turns . | . . Heaviest Build 5 | 5 5 Greatest Support 20 | 20 20 Greatest Overweight (x) . | . . Average Overweight (x) . | . . Largest Inventory Capacity 4 | 4 4 Average Capacity 4 | 4 4 Most Carried 4 | 4 4 Average Carried 3 | 3 3 Final Capacity 4 | 4 4 Final Carried 4 | 4 . Class Distribution -------------------- 100% | Mutant Dominant Class ---------------- Mutant | -10/Materials Resources | -11 -10 ----------- Run | Scr Mat Matter Collected 306 | 306 . Remotely . | . . Salvage Created 125 | 91 34 Parts 12 | 9 3 Haulers Intercepted . | . . Recyclers Shooed . | . . Parts Field Recycled . | . . Retrieved Matter . | . . Parts Self-Destructed . | . . Prevented . | . . Kills | -11 -10 ------- Run | Scr Mat Combat Hostiles Destroyed 2 | 1 1 Guns 2 | 1 1 Classes Destroyed 2 | 2 . Tunneler 3 | 3 . Grunt 2 | 1 1 Best Kill Streak 2 | 2 1 Combat Bots Only 1 | 1 1 Max Kills in Single Turn 1 | 1 1 Gunslinging . | . . Exploded . | . . Melee . | . . Uniques/NPCs Destroyed . | . . Combat | -11 -10 -------- Run | Scr Mat Damage Taken 748 | 122 626 Core 255 | 12 243 Absorbed by Shields . | . . Core Remaining (%) 95 | 95 . Volleys Fired 45 | 23 22 Largest 2 | 2 2 Hottest 60 | 40 60 Shots Fired 71 | 46 25 Gun 71 | 46 25 Cannon . | . . Launcher . | . . Special . | . . Kinetic 67 | 46 21 Thermal 4 | . 4 Explosive . | . . Electromagnetic . | . . Robot Hit Streak 7 | 7 6 Robot Miss Streak 4 | 4 2 Penetration Max . | . . Secondary Targets . | . . Shots Hit Robots 39 | 27 12 Core Hits 11 | 8 3 Critical Hits 1 | . 1 Critical Kills . | . . Critical Parts Destroyed 1 | . 1 Melee Attacks . | . . Impact . | . . Slashing . | . . Piercing . | . . Sneak Attacks . | . . Combat Hostiles . | . . Follow-up Attacks . | . . Damage Inflicted 366 | 239 127 Guns 355 | 228 127 Cannons . | . . Explosions . | . . Melee . | . . Ramming 11 | 11 . Kinetic 343 | 228 115 Thermal 12 | . 12 Explosive . | . . Electromagnetic . | . . Impact . | . . Slashing . | . . Piercing . | . . Highest Corruption . | . . Average Corruption . | . . Corruption Purged . | . . Overload Shots . | . . Overflow Damage 46 | . 46 Projectiles . | . . Explosions 46 | . 46 Melee . | . . Knockbacks . | . . Impact . | . . Kinetic . | . . Secondary . | . . Self-Inflicted Damage 83 | 1 82 Shots 1 | . 1 Rammed 2 | 2 . Targets Rammed 3 | 3 . Kicked 1 | 1 . Crushed . | . . Highest Temperature 19 | 18 19 Average Temperature 7 | 8 5 Received Heat Transfer 381 | 66 315 Siege Activations . | . . Robots Corrupted . | . . Combat Hostiles . | . . Parts Fried . | . . Impact Corruptions . | . . Robots Melted . | . . Combat Hostiles . | . . Parts Melted . | . . Heat Transferred 25 | . 25 Parts Sabotaged . | . . Parts Stolen . | . . Parts Stripped . | . . Power Chain Reactions . | . . Missiles Intercepted . | . . Alert | -11 -10 ------- Run | Scr Mat Peak Influence 52 | 35 52 Initial 22 | . 22 Average 20 | 15 37 Maximum Alert Level . | . . Low Security (%) 100 | 100 100 Level 1 . | . . Level 2 . | . . Level 3 . | . . Level 4 . | . . Level 5 . | . . High Security . | . . Max Security . | . . Squads Dispatched 1 | . 1 Investigation . | . . Extermination . | . . Reinforcement 1 | . 1 Assault . | . . Garrison . | . . Intercept . | . . Construction Impeded . | . . Haulers Reinforced . | . . Stealth | -11 -10 --------- Run | Scr Mat Distress Signals . | . . Communications Jammed . | . . Distress Signals . | . . Times Spotted 7 | 1 6 Peak Tracking Total 5 | 1 5 Tactical Retreats . | . . Traps | -11 -10 ------- Run | Scr Mat Traps Triggered . | . . Indirectly . | . . Trap Hack Attempts . | . . Triggered . | . . Disarmed . | . . Reprogrammed . | . . Reused . | . . Traps Extracted . | . . Installed . | . . Triggered . | . . Machines | -11 -10 ---------- Run | Scr Mat Machines Disabled 2 | . 2 Max in Single Turn 2 | . 2 Machines Sabotaged . | . . Garrisons Compromised . | . . Overloaded Fab Kills . | . . Fab Network Shutdowns . | . . Hacking | -11 -10 --------- Run | Scr Mat Machines Accessed . | . . Terminals . | . . Fabricators . | . . Repair Stations . | . . Recycling Units . | . . Scanalyzers . | . . Garrison Access . | . . Total Hacks . | . . Successful . | . . Failed . | . . Catastrophic . | . . Database Lockouts . | . . Manual . | . . Terminals . | . . Fabricators . | . . Repair Stations . | . . Recycling Units . | . . Scanalyzers . | . . Garrison Access . | . . Terminal Hacks . | . . Fabricator Hacks . | . . Repair Station Hacks . | . . Recycling Unit Hacks . | . . Scanalyzer . | . . Garrison Access Hacks . | . . Unauthorized Hacks . | . . Terminals . | . . Fabricators . | . . Repair Stations . | . . Recycling Units . | . . Scanalyzers . | . . Garrison Access . | . . Data Cores Recovered . | . . Used . | . . Hacking Detections . | . . Full Trace Events . | . . Feedback Events . | . . Feedback Blocked . | . . Robot Schematics Acquired . | . . Robots Built . | . . Matter . | . . Time . | . . Total Robot Build Rating . | . . Part Schematics Acquired . | . . Parts Built . | . . Matter . | . . Time . | . . Total Part Build Rating . | . . Parts Repaired . | . . Time . | . . Parts Recycled . | . . Recycled Matter . | . . Retrieved Matter . | . . Retrieved Components . | . . Parts Scanalyzed . | . . Part Schematics Acquired . | . . Parts Damaged . | . . Bothacking | -11 -10 ------------ Run | Scr Mat Used RIF Installer . | . . Robots Hacked . | . . Non-combat . | . . Combat . | . . Robot Hacks Applied . | . . Relay Couplers Released . | . . Robots Rewired . | . . Allies Hacked . | . . Hacks Repelled . | . . Allies | -11 -10 -------- Run | Scr Mat Total Allies . | . . Largest Group . | . . Highest-Rated Group . | . . Highest-Rated Ally . | . . Total Orders . | . . Ally Attacks . | . . Total Damage . | . . Kills . | . . Allies Corrupted . | . . Allies Melted . | . . Intel | -11 -10 ------- Run | Scr Mat Robot Analysis Total . | . . Derelict Logs Recovered . | . . Drone Launches . | . . Drone Recoveries . | . . Exploration | -11 -10 ------------- Run | Scr Mat Turns Passed 418 | 316 102 Spaces Moved 260 | 211 49 Core 20 | 19 1 Treads . | . . Legs 230 | 192 38 Wheels 10 | . 10 Hover . | . . Flight . | . . Fastest Speed 50 | 50 50 Average Speed 113 | 113 110 Slowest Speed 120 | 120 120 Overloaded Moves . | . . Propulsion Burnouts . | . . Robots Hopped . | . . Cave-ins Triggered . | . . Exploration Rate (%) 7 | 8 6 Regions Visited 1 Branch Regions . Pre-discovered Areas . | . . Known Exits Taken . | . . Unknown Exits Taken 1 | 1 . Scrap Searched . | . . Spaces Dug . | . . Terrain Destroyed 43 | . 43 Melee . | . . Projectile . | . . AOE 43 | . 43 Terrain Rammed . | . . Walls Destroyed . | . . Machines Disabled . | . . Actions | -11 -10 --------- Run | Scr Mat Total 322 | 247 75 Wait . | . . Move 259 | 210 49 Hop . | . . Pick Up 4 | 4 . Fast Attach 5 | 5 . Attach 4 | . 4 Detach . | . . Swap 1 | 1 . Drop 1 | 1 . Fire 45 | 23 22 Melee . | . . Ram . | . . Kick 3 | 3 . Crush . | . . Escape Stasis . | . . Rewire . | . . Trap . | . . Miscellaneous . | . . Route ------- -11/Scrapyard -10/Materials History --------- Turn | Location | Event 2 | -11/Scrapyard | Met Revision 17 101 | -11/Scrapyard | Discovered new exit (range 8) 317 | -11/Scrapyard | Entered Materials 318 | -10/Materials | Build established: Mutant 374 | -10/Materials | Core integrity fell below 50% 397 | -10/Materials | Core integrity fell below 20% 419 | -10/Materials | Destroyed by G-34 Mercenary with Small Laser Last Messages --------------- 00344_ The unstable cave ceiling collapses. 00369_ Aluminum Leg destroyed. 00370_ The unstable cave ceiling collapses. 00375_ U-05 Engineer lays Concrete. 00377_ The unstable cave ceiling collapses. 00377_ U-05 Engineer lays Concrete. 00377_ Aluminum Leg destroyed. 00378_ U-05 Engineer lays Concrete. 00384_ U-05 Engineer builds a Wall. 00384_ G-34 Mercenary destroyed. 00388_ U-05 Engineer builds a Door. 00394_ Lgt. Assault Rifle destroyed. 00395_ U-05 Engineer builds a Wall. 00402_ Sml. Laser destroyed. 00405_ U-05 Engineer lays Concrete. 00413_ Destroyed Particle Gun. 00413_ U-05 Engineer lays Concrete. 00415_ U-05 Engineer builds a Wall. 00415_ G-47 Trooper suffers critical hit. 00415_ Destroyed Aluminum Leg. Map ----- +----------------------------------------------------+ | ?????????????????????????????????????????????????? | | ?????????????????????????????????????????????????? | | ?????????????????????????????????????????????????? | | ?????????????????????????????????????????????????? | | ?????????????????????????????????????????????????? | | ?????????????????????????????????????????????????? | | ?????????????????????????????????????????????????? | | ?????????????????????????????????????????????????? | | ??????????????????????????? ?????????????????????? | | ?????????????????????????# ????????????????????? | | ?????????????????????????# ????????????????????? | | ?????????????????????????# ????????????????????? | | ?????????????????????????# ????????????????????? | | ?????????????????????????# #???????????????????? | | ?????????????????????????# #???????????????????? | | ?????????????????????????# #???????????????????? | | ?????????????????????????# ###?????????????????? | | ??????????????????##+##### ] ##????????????????? | | ??????????????????# ?????????????????? | | ??????????????????# #?????????????????? | | ???????????????????? =########??????????? | | ?????????????????????????# [%# #??????????? | | ??????????????????????????# =# #??????????? | | ???????????????????######## # ##?????????? | | ???????????????????# # # #?????????? | | ???????????????????# @g + # #?????????? | | ???????????????????# #g # #?????????? | | ???????????????????# """ # # #?????????? | | ???????????????????# """ # ##?????????? | | ???????????????????# """ ### # #??????????? | | ???????????????????########?### # ###??????????? | | ??????????????????????????????#######????????????? | | ?????????????????????????????????????????????????? | | ?????????????????????????????????????????????????? | | | | | | | | | | | | | | | | | | | | | | | | | | | | | | | | | +----------------------------------------------------+ Best States ------------- Heat Dissipation 25 Energy Generation 10 Energy Capacity 125 Matter Stores 300 Matter Capacity 300 Sight Range 16 Terrain Scan Density 10 Evasion (%) 50 Item Schematics ----------------- None Robot Schematics ------------------ None Fabricated ------------ Nothing Alien Tech Used ----------------- None Achievements -------------- None Challenges ------------ None Game ------ Seed CloakNeutronBattery Manual? 0 Play Time 00:06:24 Cumulative 0.8 hours Start 2020.11.07 @ 20:26:02 End 2020.11.07 @ 20:31:27 Sessions 1 Manual Loads 0 Difficulty Rogue Special Mode None Game No. 3 Rogue 3 Adventurer 0 Explorer 0 Win Type - Total 0 Types 0/0/0/0/0/0/0/0/0 Lore% 0 Gallery% 2 Achievement% 1 Wizard Run 0 Options --------- ASCII 0 Keyboard 1 Movement Arrows Keybinds 0 Fullscreen 0 Font 20/X11 Map View 76x50 Tactical HUD 1 Map Filters NONE Filters NONE Steam 1 RUN: d61e6a5f-21fa-4c0f-b420-abd9560a0c2c